lending/lending_fUSD_20241120
["ID","MTS","AMOUNT","RATE_DAILY","PERIOD"]
[342811516,1732143196659,-509.24,0.00059726,120]
[342811517,1732143196668,-500.0,0.00059726,120]
[342811518,1732143196678,-700.0,0.00059726,120]
[342811519,1732143196687,-928.5,0.00059726,120]
[342811520,1732143196696,-1806.6,0.00059726,120]
[342811521,1732143196705,-1129.79,0.00059726,120]
[342811522,1732143196715,-500.0,0.00059726,120]
[342811523,1732143196725,-2425.19,0.00059726,120]
[342811524,1732143196737,-625.0,0.00059726,120]
[342811525,1732143196746,-1018.93,0.00059726,120]
[342811526,1732143196755,-2073.72,0.00059726,120]
[342811527,1732143196764,-1011.93,0.00059726,120]
[342811528,1732143196773,-1257.41,0.00059726,120]
[342811529,1732143196784,-1328.54,0.00059726,120]
[342811530,1732143196796,-893.2,0.00059726,120]
[342811531,1732143196806,-878.56,0.00059726,120]
[342811532,1732143196816,-1954.12,0.00059726,120]
[342811533,1732143196827,-1107.33,0.00059726,120]
[342811534,1732143196838,-5394.68,0.00059726,120]
[342811535,1732143196848,-299.97,0.00059726,120]
[342811536,1732143196857,-500.0,0.00059726,120]
[342811537,1732143196866,-965.73,0.00059726,120]
[342811538,1732143196884,-543.1,0.00059726,120]
[342811539,1732143196894,-1317.76,0.00059726,120]
[342811540,1732143196903,-594.46,0.00059726,120]
[342811541,1732143196911,-1617.12,0.00059726,120]
[342811542,1732143196922,-657.08,0.00059726,120]
[342811543,1732143196934,-628.07,0.00059726,120]
[342811544,1732143196944,-4865.56,0.00059726,120]
[342811545,1732143196954,-1510.86,0.00059726,120]
[342811546,1732143196965,-2529.98,0.00059726,120]
[342811547,1732143196974,-635.24,0.00059726,120]
[342811548,1732143196983,-750.97,0.00059726,120]
[342811549,1732143196992,-1761.11,0.00059726,120]
[342811550,1732143197003,-624.76,0.00059726,120]
[342811551,1732143197012,-46265.17,0.00059726,120]
[342811552,1732143197022,-500.0,0.00059726,120]
[342811553,1732143197031,-880.93,0.00059726,120]
[342811554,1732143197041,-644.52,0.00059726,120]
[342811555,1732143197050,-373.79261782,0.00059726,120]
[342811556,1732143197059,-4390.12,0.00059726,120]
[342811557,1732143197068,-3641.91,0.00059726,120]
[342811558,1732143197078,-2046.77,0.00059726,120]
[342811559,1732143197087,-519.31,0.00059726,120]
[342811560,1732143197096,-1582.94,0.00059726,120]
[342811561,1732143197106,-1566.08,0.00059726,120]
[342811562,1732143197115,-1540.18,0.00059726,120]
[342811563,1732143197125,-485.65556813,0.00059726,120]
[342811564,1732143197135,-32182.96,0.00059726,120]
[342811565,1732143197145,-2395.44,0.00059726,120]
[342811566,1732143197154,-328.41931337,0.00059726,120]
[342811567,1732143197163,-774.88,0.00059726,120]
[342811568,1732143197173,-629.19421094,0.00059726,120]
[342811569,1732143197183,-3018.97,0.00059726,120]
[342811570,1732143197192,-500.0,0.00059726,120]
[342811571,1732143197203,-1221.56,0.00059726,120]
[342811572,1732143197212,-949.33,0.00059726,120]
[342811573,1732143197221,-388.68658542,0.00059726,120]
[342811574,1732143197231,-512.47,0.00059726,120]
[342811575,1732143197241,-975.73,0.00059726,120]
[342811576,1732143197251,-596.0,0.00059726,120]
[342811577,1732143197260,-1680.87,0.00059726,120]
[342811578,1732143197270,-2068.97,0.00059726,120]
[342811579,1732143197279,-509.92,0.00059726,120]
[342811580,1732143197288,-2386.08,0.00059726,120]
[342811581,1732143197298,-2587.78,0.00059726,120]
[342811582,1732143197307,-1481.97,0.00059726,120]
[342811583,1732143197316,-500.0,0.00059726,120]
[342811584,1732143197325,-1478.74,0.00059726,120]
[342811585,1732143197334,-1548.0,0.00059726,120]
[342811586,1732143197343,-500.0,0.00059726,120]
[342811587,1732143197353,-580.13,0.00059726,120]
[342811588,1732143197362,-1753.89,0.00059726,120]
[342811589,1732143197372,-816.51,0.00059726,120]
[342811590,1732143197381,-150.0,0.00059726,120]
[342811591,1732143197390,-10880.09,0.00059726,120]
[342811592,1732143197399,-2245.37,0.00059726,120]
[342811593,1732143197408,-3622.31,0.00059726,120]
[342811594,1732143197417,-502.6,0.00059726,120]
[342811595,1732143197426,-500.0,0.00059726,120]
[342811596,1732143197436,-1317.84,0.00059726,120]
[342811597,1732143197445,-1518.89,0.00059726,90]
[342811598,1732143197454,-1643.31,0.00059726,120]
[342811599,1732143197463,-1298.63,0.00059726,120]
[342811600,1732143197473,-943.47,0.00059726,120]
[342811601,1732143197483,-500.0,0.00059726,120]
[342811602,1732143197493,-1649.32,0.00059726,120]
[342811603,1732143197502,-550.87,0.00059726,120]
[342811604,1732143197512,-5640.48,0.00059726,120]
[342811605,1732143197523,-2158.9,0.00059726,120]
[342811606,1732143197533,-1165.26,0.00059726,120]
[342811607,1732143197543,-1244.51,0.00059726,120]
[342811608,1732143197553,-421.62753229,0.00059726,120]
[342811609,1732143197564,-500.0,0.00059726,120]
[342811610,1732143197575,-1110.14,0.00059726,120]
[342811611,1732143197585,-9870.91,0.00059726,120]
[342811612,1732143197595,-986.78,0.00059726,120]
[342811613,1732143197605,-567.02,0.00059726,120]
[342811614,1732143197614,-651.9,0.00059726,120]
[342811615,1732143197623,-500.0,0.00059726,120]
[342811616,1732143197632,-3368.96,0.00059726,120]
[342811617,1732143197641,-6243.58,0.00059726,120]
[342811618,1732143197651,-1221.81,0.00059726,120]
[342811619,1732143197660,-1021.75,0.00059726,120]
[342811620,1732143197669,-1378.96,0.00059726,120]
[342811621,1732143197678,-1402.48,0.00059726,120]
[342811622,1732143197687,-1098.99,0.00059726,7]
[342811623,1732143197697,-2324.89,0.00059726,120]
[342811624,1732143197707,-502.32,0.00059726,120]
[342811625,1732143197716,-3357.52,0.00059726,120]
[342811626,1732143197725,-631.52,0.00059726,120]
[342811627,1732143197735,-1503.83,0.00059726,120]
[342811628,1732143197744,-610.46,0.00059726,120]
[342811629,1732143197754,-676.3,0.00059726,120]
[342811630,1732143197763,-4485.14,0.00059726,120]
[342811631,1732143197772,-1449.22,0.00059726,120]
[342811632,1732143197781,-802.14,0.00059726,120]
[342811633,1732143197791,-1005.77,0.00059726,120]
[342811634,1732143197799,-62267.29,0.00059726,5]
[342811635,1732143197809,-1000.0,0.00059726,120]
[342811636,1732143197818,-1200.11,0.00059726,120]
[342811637,1732143197827,-4633.73,0.00059726,120]
[342811638,1732143197836,-500.0,0.00059726,120]
[342811639,1732143197846,-1462.06,0.00059726,120]
[342811640,1732143197859,-1071.61,0.00059726,120]
[342811641,1732143197868,-1246.53,0.00059726,120]
[342811642,1732143197878,-665.76,0.00059726,120]
[342811643,1732143197888,-1619.4,0.00059726,120]
[342811644,1732143197897,-4155.63,0.00059726,120]
[342811645,1732143197907,-500.0,0.00059726,120]
[342811646,1732143197918,-534.16,0.00059726,120]
[342811647,1732143197930,-716.03,0.00059726,120]
[342811648,1732143197941,-710.7,0.00059726,120]
[342811649,1732143197951,-1328.15,0.00059726,120]
[342811650,1732143197961,-3842.23,0.00059726,120]
[342811651,1732143197972,-1770.4,0.00059726,120]
[342811652,1732143197982,-1828.16,0.00059726,120]
[342811653,1732143197992,-734.2,0.00059726,120]
[342811654,1732143198003,-492.68343334,0.00059726,120]
[342811655,1732143198013,-4113.57,0.00059726,120]
[342811656,1732143198022,-3361.09,0.00059726,120]
[342811657,1732143198032,-2336.41,0.00059726,120]
[342811658,1732143198041,-914.26,0.00059726,120]
[342811659,1732143198051,-2227.59,0.00059726,120]
[342811660,1732143198060,-1225.66,0.00059726,120]
[342811661,1732143198069,-1199.34,0.00059726,120]
[342811662,1732143198081,-500.0,0.00059726,120]
[342811663,1732143198091,-818.4,0.00059726,120]
[342811664,1732143198100,-945.67,0.00059726,120]
[342811665,1732143198109,-4656.57,0.00059726,120]
[342811666,1732143198118,-656.2,0.00059726,120]
[342811667,1732143198128,-1601.15,0.00059726,120]
[342811668,1732143198138,-2590.51,0.00059726,120]
[342811669,1732143198148,-617.4,0.00059726,120]
[342811670,1732143198157,-1087.48,0.00059726,120]
[342811671,1732143198167,-583.30147895,0.00059726,120]
[342811672,1732143198176,-1021.22,0.00059726,120]
[342811673,1732143198186,-530.21,0.00059726,120]
[342811674,1732143198196,-4078.12,0.00059726,120]
[342811675,1732143198206,-609.85,0.00059726,120]
[342811676,1732143198215,-1271.08,0.00059726,120]
[342811677,1732143198225,-630.13,0.00059726,120]
[342811678,1732143198235,-1053.42,0.00059726,120]
[342811679,1732143198244,-868.75,0.00059726,120]
[342811680,1732143198254,-10737.37,0.00059726,21]
[342811681,1732143198264,-3054.48,0.00059726,120]
[342811682,1732143198274,-772.0,0.00059726,120]
[342811683,1732143198284,-790.82,0.00059726,120]
[342811684,1732143198293,-1615.7,0.00059726,120]
[342811685,1732143198303,-2780.77,0.00059726,120]
[342811686,1732143198312,-3170.06,0.00059726,120]
[342811687,1732143198322,-530.51,0.00059726,120]
[342811688,1732143198332,-814.28,0.00059726,120]
[342811689,1732143198343,-500.0,0.00059726,120]
[342811690,1732143198352,-1053.94,0.00059726,120]
[342811691,1732143198362,-832.21,0.00059726,120]
[342811692,1732143198371,-559.12,0.00059726,120]
[342811693,1732143198381,-962.23,0.00059726,120]
[342811694,1732143198391,-4610.65,0.00059726,120]
[342811695,1732143198401,-630.95,0.00059726,120]
[342811696,1732143198411,-7093.52,0.00059726,120]
[342811697,1732143198421,-1497.99,0.00059726,120]
[342811698,1732143198430,-3030.53,0.00059726,120]
[342811699,1732143198440,-2002.76,0.00059726,120]
[342811700,1732143198450,-4996.62,0.00059726,120]
[342811701,1732143198461,-1038.47,0.00059726,120]
[342811702,1732143198471,-3755.03,0.00059726,120]
[342811703,1732143198480,-420.8431469,0.00059726,120]
[342811704,1732143198491,-500.33,0.00059726,120]
[342811705,1732143198501,-619.43,0.00059726,120]
[342811706,1732143198511,-1395.84,0.00059726,120]
[342811707,1732143198521,-6717.87,0.00059726,120]
[342811708,1732143198531,-4210.05,0.00059726,120]
[342811709,1732143198540,-4619.32,0.00059726,120]
[342811710,1732143198551,-2125.56,0.00059726,120]
[342811711,1732143198561,-1522.48,0.00059726,120]
[342811712,1732143198571,-500.0,0.00059726,120]
[342811713,1732143198580,-2913.49,0.00059726,120]
[342811714,1732143198590,-6408.58,0.00059726,60]
[342811715,1732143198600,-208.42035926,0.00059726,120]
[342811716,1732143198610,-8536.13,0.00059726,120]
[342811717,1732143198620,-931.52,0.00059726,120]
[342811718,1732143198630,-5185.83,0.00059726,120]
[342811719,1732143198639,-873.24,0.00059726,120]
[342811720,1732143198649,-1838.8,0.00059726,120]
[342811721,1732143198659,-1525.45,0.00059726,120]
[342811722,1732143198669,-1373.0,0.00059726,120]
[342811723,1732143198679,-1659.86,0.00059726,120]
[342811724,1732143198689,-5907.77,0.00059726,120]
[342811725,1732143198699,-647.02,0.00059726,120]
[342811726,1732143198709,-1210.69,0.00059726,120]
[342811727,1732143198719,-526.64,0.00059726,120]
[342811728,1732143198728,-12504.89,0.00059726,120]
[342811729,1732143198741,-2076.98,0.00059726,120]
[342811730,1732143198752,-1181.36,0.00059726,120]
[342811731,1732143198761,-677.21,0.00059726,120]
[342811732,1732143198771,-2434.04,0.00059726,120]
[342811733,1732143198781,-1109.03,0.00059726,120]
[342811734,1732143198791,-1099.32,0.00059726,120]
[342811735,1732143198801,-651.95,0.00059726,120]
[342811736,1732143198811,-4681.73,0.00059726,120]
[342811737,1732143198821,-757.95,0.00059726,120]
[342811738,1732143198831,-986.66,0.00059726,120]
[342811739,1732143198840,-880.48,0.00059726,120]
[342811740,1732143198850,-1502.22,0.00059726,120]
[342811741,1732143198860,-1166.87,0.00059726,120]
[342811742,1732143198870,-1450.31,0.00059726,120]
[342811743,1732143198880,-2144.4,0.00059726,120]
[342811744,1732143198890,-548.14,0.00059726,120]
[342811745,1732143198900,-1032.14,0.00059726,120]
[342811746,1732143198909,-14474.38,0.00059726,120]
[342811747,1732143198920,-16729.96,0.00059726,120]
[342811748,1732143198934,-500.0,0.00059726,120]
[342811749,1732143198943,-533.88,0.00059726,120]
[342811750,1732143198953,-2375.8,0.00059726,120]
[342811751,1732143198964,-726.78,0.00059726,120]
[342811752,1732143198974,-3517.73,0.00059726,120]
[342811753,1732143198984,-500.0,0.00059726,120]
[342811754,1732143198999,-2949.54,0.00059726,120]
[342811755,1732143199011,-680.36,0.00059726,120]
[342811756,1732143199021,-629.45,0.00059726,120]
[342811757,1732143199032,-1835.32,0.00059726,120]
[342811758,1732143199042,-567.38,0.00059726,120]
[342811759,1732143199053,-1270.02,0.00059726,120]
[342811760,1732143199063,-150.0,0.00059726,120]
[342811761,1732143199073,-1077.92,0.00059726,120]
[342811762,1732143199085,-1080.78,0.00059726,120]
[342811763,1732143199096,-500.0,0.00059726,120]
[342811764,1732143199106,-730.91,0.00059726,120]
[342811765,1732143199116,-794.46,0.00059726,120]
[342811766,1732143199126,-836.47,0.00059726,120]
[342811767,1732143199137,-877.06,0.00059726,120]
[342811768,1732143199147,-1006.93,0.00059726,120]
[342811769,1732143199157,-873.31,0.00059726,120]
[342811770,1732143199167,-5067.66,0.00059726,120]
[342811771,1732143199177,-897.49,0.00059726,120]
[342811772,1732143199188,-1213.36,0.00059726,120]
[342811773,1732143199198,-615.04,0.00059726,120]
[342811774,1732143199208,-537.82,0.00059726,120]
[342811775,1732143199218,-500.0,0.00059726,120]
[342811776,1732143199228,-1001.49,0.00059726,120]
[342811777,1732143199241,-911.56,0.00059726,120]
[342811778,1732143199251,-1621.15,0.00059726,120]
[342811779,1732143199262,-1004.9,0.00059726,120]
[342811780,1732143199272,-670.6,0.00059726,120]
[342811781,1732143199547,-1363.03,0.00059726,120]
[342811782,1732143199556,-4519.72,0.00059726,120]
[342811783,1732143199566,-681.14,0.00059726,120]
[342811784,1732143199576,-597.02,0.00059726,120]
[342811785,1732143199586,-1529.3,0.00059726,120]
[342811786,1732143199595,-5382.48,0.00059726,120]
[342811787,1732143199605,-2209.36,0.00059726,120]
[342811788,1732143199615,-640.41,0.00059726,120]
[342811789,1732143199624,-1045.28,0.00059726,120]
[342811790,1732143199634,-150.0,0.00059727,14]
[342811791,1732143199643,-150.0,0.00059729,30]
[342811792,1732143199652,-150.0,0.00059731,30]
[342811793,1732143199662,-1500.0,0.00059738,30]
[342811794,1732143199671,-150.0,0.0005974,14]
[342811795,1732143199681,-150.0,0.0005974,30]
[342811796,1732143199691,-150.0,0.0005974,30]
[342811797,1732143199700,-150.0,0.00059743,14]
[342811798,1732143199710,-150.0,0.00059744,14]
[342811799,1732143199720,-150.0,0.00059744,30]
[342811800,1732143199729,-150.0,0.00059745,14]
[342811801,1732143199740,-150.0,0.00059747,14]
[342811802,1732143199749,-228.31696586,0.00059749,30]
[342811803,1732143199758,-150.0,0.00059749,14]
[342811804,1732143199768,-778.05050611,0.00059753,120]
[342811805,1732143199778,-596.0,0.00059753,120]
[342811806,1732143199788,-1548.0,0.00059753,120]
[342811807,1732143199798,-238.23178593,0.00059753,120]
[342811808,1732143199808,-150.0,0.00059753,120]
[342811809,1732143199818,-150.0,0.00059763,30]
[342811810,1732143199828,-270.79792538,0.0005977,14]
[342811811,1732143199838,-150.0,0.0005978,14]
[342811812,1732143199847,-596.0,0.00059781,120]
[342811813,1732143199857,-1548.0,0.00059781,120]
[342811814,1732143199867,-150.0,0.00059786,14]
[342811815,1732143199876,-300.0,0.0005979,30]
[342811816,1732143199886,-150.0,0.00059792,14]
[342811817,1732143199897,-150.0,0.00059795,14]
[342811818,1732143199906,-150.0,0.00059795,30]
[342811819,1732143199916,-150.0,0.00059796,14]
[342811820,1732143199929,-385803.06467612,0.000598,120]
[342811821,1732143199938,-150.0,0.00059802,30]
[342811822,1732143199948,-150.0,0.00059804,14]
[342811823,1732143199958,-596.0,0.00059808,120]
[342811824,1732143199968,-1548.0,0.00059808,120]
[342811825,1732143199978,-150.0,0.00059811,14]
[342811826,1732143199989,-150.0,0.00059813,14]
[342811827,1732143199998,-150.0,0.00059818,14]
[342811828,1732143200010,-150.0,0.00059818,30]
[342811829,1732143200020,-150.0,0.00059819,14]
[342811830,1732143200030,-150.0,0.00059822,30]
[342811831,1732143200040,-150.0,0.00059822,30]
[342811832,1732143200050,-150.0,0.00059832,30]
[342811833,1732143200060,-596.0,0.00059836,120]
[342811834,1732143200070,-1548.0,0.00059836,120]
[342811835,1732143200080,-261.60435868,0.00059837,30]
[342811836,1732143200090,-150.0,0.00059841,30]
[342811837,1732143200100,-150.0,0.00059847,30]
[342811838,1732143200110,-150.0,0.00059849,30]
[342811839,1732143200121,-150.0,0.00059854,14]
[342811840,1732143200130,-150.0,0.00059854,14]
[342811841,1732143200140,-150.0,0.00059858,14]
[342811842,1732143200150,-150.0,0.00059858,30]
[342811843,1732143200161,-150.0,0.0005986,14]
[342811844,1732143200171,-596.0,0.00059863,120]
[342811845,1732143200180,-1548.0,0.00059863,120]
[342811846,1732143200190,-1500.0,0.00059864,30]
[342811847,1732143200200,-150.0,0.0005987,14]
[342811848,1732143200210,-150.0,0.00059871,30]
[342811849,1732143200219,-150.0,0.00059871,30]
[342811850,1732143200229,-150.0,0.00059874,14]
[342811851,1732143200240,-150.0,0.00059875,30]
[342811852,1732143200249,-150.0,0.00059879,30]
[342811853,1732143200259,-150.0,0.00059889,14]
[342811854,1732143200269,-150.0,0.0005989,14]
[342811855,1732143200278,-596.0,0.0005989,120]
[342811856,1732143200288,-1548.0,0.0005989,120]
[342811857,1732143200298,-150.0,0.00059893,14]
[342811858,1732143200308,-20771.801995,0.000599,2]
[342811859,1732143200317,-1108.46,0.000599,120]
[342811860,1732143200327,-150.0,0.00059908,14]
[342811861,1732143200337,-596.0,0.00059918,120]
[342811862,1732143200347,-1548.0,0.00059918,120]
[342811863,1732143200356,-150.0,0.00059922,14]
[342811864,1732143200365,-150.0,0.00059934,14]
[342811865,1732143200375,-150.0,0.00059938,14]
[342811866,1732143200384,-674.72531698,0.0005994,120]
[342811867,1732143200393,-245.97244822,0.0005994,120]
[342811868,1732143200402,-150.0,0.0005994,14]
[342811869,1732143200412,-150.0,0.0005994,14]
[342811870,1732143200423,-150.0,0.0005994,120]
[342811871,1732143200434,-156.59898873,0.0005994,120]
[342811872,1732143200443,-300.08402069,0.0005994,120]
[342811873,1732143200452,-150.0,0.0005994,120]
[342811874,1732143200462,-279.72542691,0.0005994,120]
[342811875,1732143200471,-150.0,0.0005994,120]
[342811876,1732143200480,-150.0,0.0005994,120]
[342811877,1732143200490,-150.0,0.0005994,120]
[342811878,1732143200499,-154.42465089,0.0005994,120]
[342811879,1732143200509,-167.37394599,0.0005994,120]
[342811880,1732143200518,-150.0,0.0005994,120]
[342811881,1732143200527,-150.0,0.0005994,120]
[342811882,1732143200536,-150.0,0.00059942,30]
[342811883,1732143200546,-596.0,0.00059945,120]
[342811884,1732143200555,-1548.0,0.00059945,120]
[342811885,1732143200565,-150.0,0.00059946,14]
[342811886,1732143200575,-150.0,0.00059951,14]
[342811887,1732143200585,-150.0,0.00059951,14]
[342811888,1732143200595,-150.0,0.00059956,14]
[342811889,1732143200604,-150.0,0.00059956,30]
[342811890,1732143200614,-150.0,0.00059958,14]
[342811891,1732143200624,-150.0,0.00059959,30]
[342811892,1732143200633,-150.0,0.0005996,14]
[342811893,1732143200643,-150.0,0.00059967,14]
[342811894,1732143200652,-596.0,0.00059973,120]
[342811895,1732143200662,-1548.0,0.00059973,120]
[342811896,1732143200671,-150.0,0.00059985,30]
[342811897,1732143200681,-150.0,0.00059987,14]
[342811898,1732143200691,-209.0,0.0005999,30]
[342811899,1732143200701,-204.0,0.0005999,120]
[342811900,1732143200711,-207.0,0.0005999,120]
[342811901,1732143200719,-216.0,0.0005999,120]
[342811902,1732143200728,-204.0,0.0005999,30]
[342811903,1732143200739,-204.0,0.0005999,120]
[342811904,1732143200748,-201.0,0.0005999,120]
[342811905,1732143200757,-215.0,0.0005999,120]
[342811906,1732143200767,-207.0,0.0005999,30]
[342811907,1732143200776,-215.0,0.0005999,120]
[342811908,1732143200784,-204.0,0.0005999,30]
[342811909,1732143200793,-205.0,0.0005999,30]
[342811910,1732143200802,-150.0,0.00059992,14]
[342811911,1732143200811,-150.0,0.00059996,14]
[342811912,1732143200820,-500.0,0.00059999,120]
[342811913,1732143200829,-500.0,0.00059999,120]
[342811914,1732143200838,-500.0,0.00059999,120]
[342811915,1732143200847,-500.0,0.00059999,120]
[342811916,1732143200855,-500.0,0.00059999,120]
[342811917,1732143200865,-1252.22,0.00059999,120]
[342811918,1732143200874,-500.0,0.00059999,120]
[342811919,1732143200883,-451.40082549,0.00059999,120]
[342811920,1732143200893,-500.0,0.00059999,120]
[342811921,1732143200902,-500.0,0.00059999,120]
[342811922,1732143200912,-576.02,0.00059999,120]
[342811923,1732143200922,-771.31,0.00059999,120]
[342811924,1732143200935,-500.0,0.00059999,120]
[342811925,1732143200945,-500.0,0.00059999,120]
[342811926,1732143200955,-500.0,0.00059999,120]
[342811927,1732143200965,-500.0,0.00059999,120]
[342811928,1732143200974,-500.0,0.00059999,120]
[342811929,1732143200984,-500.0,0.00059999,120]
[342811930,1732143200994,-500.0,0.00059999,120]
[342811931,1732143201005,-554.38,0.00059999,120]
[342811932,1732143201014,-500.0,0.00059999,120]
[342811933,1732143201023,-601.61,0.00059999,120]
[342811934,1732143201032,-1158.3,0.00059999,120]
[342811935,1732143201041,-500.0,0.00059999,120]
[342811936,1732143201051,-500.0,0.00059999,120]
[342811937,1732143201060,-500.0,0.00059999,120]
[342811938,1732143201069,-1261.01,0.00059999,120]
[342811939,1732143201078,-500.0,0.00059999,120]
[342811940,1732143201088,-500.0,0.00059999,120]
[342811941,1732143201097,-500.0,0.00059999,120]
[342811942,1732143201106,-500.0,0.00059999,120]
[342811943,1732143201115,-598.93,0.00059999,120]
[342811944,1732143201124,-500.0,0.00059999,60]
[342811945,1732143201134,-500.0,0.00059999,120]
[342811946,1732143201143,-500.0,0.00059999,120]
[342811947,1732143201152,-1006.34,0.00059999,120]
[342811948,1732143201161,-500.0,0.00059999,120]
[342811949,1732143201171,-504.43,0.00059999,120]
[342811950,1732143201181,-500.0,0.00059999,120]
[342811951,1732143201191,-500.0,0.00059999,120]
[342811952,1732143201201,-500.0,0.00059999,120]
[342811953,1732143201211,-500.0,0.00059999,120]
[342811954,1732143201221,-494.90344962,0.00059999,120]
[342811955,1732143201230,-500.0,0.00059999,120]
[342811956,1732143201242,-500.0,0.00059999,120]
[342811957,1732143201252,-500.0,0.00059999,120]
[342811958,1732143201261,-500.0,0.00059999,120]
[342811959,1732143201270,-1283.37,0.00059999,120]
[342811960,1732143201279,-949.28,0.00059999,120]
[342811961,1732143201288,-588.18,0.00059999,120]
[342811962,1732143201297,-701.26,0.00059999,120]
[342811963,1732143201307,-1332.5,0.00059999,120]
[342811964,1732143201316,-761.37,0.00059999,120]
[342811965,1732143201325,-500.0,0.00059999,120]
[342811966,1732143201335,-673.21,0.00059999,120]
[342811967,1732143201344,-500.0,0.00059999,120]
[342811968,1732143201354,-570.71,0.00059999,120]
[342811969,1732143201363,-216.87,0.00059999,7]
[342811970,1732143201372,-500.0,0.00059999,120]
[342811971,1732143201382,-1647.84,0.00059999,120]
[342811972,1732143201392,-688.18,0.00059999,120]
[342811973,1732143201402,-500.0,0.00059999,120]
[342811974,1732143201412,-672.22,0.00059999,120]
[342811975,1732143201421,-901.77,0.00059999,120]
[342811976,1732143201431,-500.0,0.00059999,120]
[342811977,1732143201442,-500.0,0.00059999,120]
[342811978,1732143201462,-749.97,0.00059999,120]
[342811979,1732143201479,-500.0,0.00059999,120]
[342811980,1732143201498,-874.95,0.00059999,120]
[342811981,1732143201519,-705.26,0.00059999,120]
[342811982,1732143201536,-1584.28,0.00059999,120]
[342811983,1732143201555,-500.0,0.00059999,120]
[342811984,1732143201576,-698.15,0.00059999,120]
[342811985,1732143201596,-862.02,0.00059999,120]
[342811986,1732143201615,-500.0,0.00059999,120]
[342811987,1732143201634,-710.13,0.00059999,120]
[342811988,1732143201649,-500.0,0.00059999,120]
[342811989,1732143201667,-500.0,0.00059999,120]
[342811990,1732143201682,-575.87,0.00059999,120]
[342811991,1732143201699,-533.41,0.00059999,120]
[342811992,1732143201722,-1044.98,0.00059999,120]
[342811993,1732143201740,-500.0,0.00059999,120]
[342811994,1732143201759,-151.0,0.00059999,120]
[342811995,1732143201778,-500.0,0.00059999,120]
[342811996,1732143201795,-161.27118,0.00059999,120]
[342811997,1732143201811,-550.21,0.00059999,120]
[342811998,1732143201828,-500.0,0.00059999,120]
[342811999,1732143201844,-838.1,0.00059999,120]
[342812000,1732143201863,-500.0,0.00059999,120]
[342812001,1732143201881,-598.39,0.00059999,120]
[342812002,1732143201898,-500.0,0.00059999,120]
[342812003,1732143201914,-500.0,0.00059999,120]
[342812004,1732143201931,-500.0,0.00059999,120]
[342812005,1732143201948,-500.0,0.00059999,120]
[342812006,1732143201963,-876.64,0.00059999,120]
[342812007,1732143201981,-678.26,0.00059999,120]
[342812008,1732143202004,-500.0,0.00059999,120]
[342812009,1732143202024,-853.3,0.00059999,120]
[342812010,1732143202040,-528.71,0.00059999,120]
[342812011,1732143202059,-577.89,0.00059999,120]
[342812012,1732143202076,-1058.89,0.00059999,120]
[342812013,1732143202092,-500.0,0.00059999,120]
[342812014,1732143202109,-929.3,0.00059999,120]
[342812015,1732143202129,-500.0,0.00059999,120]